bitfinex/quotes_BTCUSD_20250620
["timestamp","ask_amount","ask_price","bid_price","bid_amount"]
[1750438792546,0.37936378,103740.0,103730.0,0.54532729]
[1750438792760,0.344,103740.0,103730.0,0.54532729]
[1750438794031,0.004,103740.0,103730.0,0.55986814]
[1750438794246,0.004,103740.0,103730.0,0.55970814]
[1750438795432,0.002,103740.0,103730.0,0.55970814]
[1750438795657,0.002,103740.0,103730.0,0.56570814]
[1750438796370,0.35927394,103760.0,103750.0,0.28568562]
[1750438796602,0.34963678,103760.0,103750.0,0.45104562]
[1750438796832,0.40801613,103770.0,103760.0,0.22166425]
[1750438797058,3.53948324,103770.0,103760.0,0.21202728]
[1750438797284,3.53948324,103770.0,103760.0,0.23130131]
[1750438797285,0.40801613,103770.0,103760.0,0.23130131]
[1750438797531,0.71509619,103770.0,103760.0,0.25316434]
[1750438797761,0.71509619,103770.0,103760.0,0.24352728]
[1750438798248,0.71609619,103770.0,103760.0,0.25316444]
[1750438798482,0.71609619,103770.0,103760.0,0.24352728]
[1750438798723,0.48481633,103770.0,103760.0,0.25316425]
[1750438798991,0.02070776,103770.0,103760.0,0.28682425]
[1750438799429,0.03997994,103770.0,103760.0,0.44106728]
[1750438799638,0.03997994,103770.0,103760.0,0.45070425]
[1750438799861,0.04961635,103770.0,103760.0,0.45070425]
[1750438800087,0.11840205,103770.0,103760.0,0.45066425]
[1750438800302,0.10876564,103770.0,103760.0,0.45066425]
[1750438800531,0.11840195,103770.0,103760.0,0.45066425]
[1750438800746,0.35927404,103760.0,103750.0,0.41782562]
[1750438800990,0.34,103760.0,103750.0,0.41898562]
[1750438801268,0.34,103760.0,103750.0,0.44928562]
[1750438801520,0.34,103760.0,103750.0,0.51142534]
[1750438801786,0.34,103760.0,103750.0,0.34758534]
[1750438802015,0.34,103760.0,103750.0,0.51146534]
[1750438802474,0.34963678,103760.0,103750.0,0.51146534]
[1750438802713,0.36891082,103760.0,103750.0,0.44808562]
[1750438802979,0.36891082,103760.0,103750.0,0.45124562]
[1750438803218,0.34,103760.0,103750.0,0.38744562]
[1750438803464,3.74327866,103770.0,103760.0,0.22166444]
[1750438803695,3.73364271,103770.0,103760.0,0.2313015]
[1750438803914,3.54090878,103770.0,103760.0,0.22166444]
[1750438804143,3.73364271,103770.0,103760.0,0.21202737]
[1750438804375,3.72400648,103770.0,103760.0,0.20239003]
[1750438804821,3.52206069,103770.0,103760.0,0.21202746]
[1750438805266,3.51342437,103770.0,103760.0,0.22166471]
[1750438805501,3.51342437,103770.0,103760.0,0.21202746]
[1750438806395,3.56228095,103770.0,103760.0,0.21202746]
[1750438806833,3.55264435,103770.0,103760.0,0.1927525]
[1750438807049,0.0192745,103760.0,103750.0,0.40726697]
[1750438807237,0.02891156,103760.0,103750.0,0.46706695]
[1750438807486,0.01927422,103760.0,103750.0,0.46706695]
[1750438807757,3.75950002,103760.0,103750.0,0.5]
[1750438808066,0.37248578,103760.0,103750.0,0.76212379]
[1750438808280,0.35927366,103760.0,103750.0,0.79558379]
[1750438808505,0.34,103760.0,103750.0,0.95906379]
[1750438808732,0.37251213,103760.0,103750.0,0.95906379]
[1750438808961,0.34,103760.0,103750.0,0.95906379]
[1750438809177,0.34963678,103760.0,103750.0,1.05433364]
[1750438809444,0.34963678,103760.0,103750.0,0.95906379]
[1750438809676,0.36290148,103760.0,103750.0,0.96106379]
[1750438809894,0.38217552,103760.0,103750.0,0.76472379]
[1750438810129,0.37253836,103760.0,103750.0,0.76472379]
[1750438810347,0.38217552,103760.0,103750.0,0.76596379]
[1750438810566,0.37253836,103760.0,103750.0,0.79886379]
[1750438810804,0.38217542,103760.0,103750.0,0.79886379]
[1750438811255,0.37253836,103760.0,103750.0,0.96226379]
[1750438811690,0.38217523,103760.0,103750.0,0.96226379]
[1750438811907,0.38217532,103760.0,103750.0,0.96226379]
[1750438812336,0.38217523,103760.0,103750.0,0.96226379]
[1750438812548,0.37253826,103760.0,103750.0,0.96226379]
[1750438812777,0.36290148,103760.0,103750.0,0.96226379]
[1750438814157,0.36290148,103760.0,103750.0,1.05753364]
[1750438814379,0.36290148,103760.0,103750.0,0.96226379]
[1750438814599,0.34,103760.0,103750.0,0.96226379]
[1750438814816,0.36291169,103760.0,103750.0,1.05754272]
[1750438815044,0.34,103760.0,103750.0,1.05754272]
[1750438815261,0.34,103760.0,103750.0,1.15281257]
[1750438816346,0.34,103760.0,103750.0,1.05754272]
[1750438818836,0.34,103760.0,103750.0,0.89414272]
[1750438819281,0.34,103760.0,103750.0,0.79886379]
[1750438819503,0.34963697,103760.0,103750.0,0.96210379]
[1750438819718,0.36292896,103760.0,103750.0,0.96210379]
[1750438820378,0.36292896,103760.0,103750.0,0.79762379]
[1750438820608,0.37256584,103760.0,103750.0,0.75682562]
[1750438820878,0.36292896,103760.0,103750.0,0.78682562]
[1750438821086,0.37256574,103760.0,103750.0,0.78682562]
[1750438821305,0.36292896,103760.0,103750.0,0.78682562]
[1750438821522,0.36292896,103760.0,103750.0,0.88209547]
[1750438821743,0.37256574,103760.0,103750.0,0.78682562]
[1750438821958,0.36292896,103760.0,103750.0,0.78682562]
[1750438822837,0.36292896,103760.0,103750.0,0.95006562]
[1750438823273,0.36292896,103760.0,103750.0,0.78682562]
[1750438823500,0.36292896,103760.0,103750.0,0.95006562]
[1750438823947,0.36292896,103760.0,103750.0,1.04533547]
[1750438824160,0.36292896,103760.0,103750.0,0.95006562]
[1750438824855,0.34,103760.0,103750.0,0.95006562]
[1750438825737,0.38222486,103760.0,103750.0,0.95006562]
[1750438825955,0.40149945,103760.0,103750.0,0.91882562]
[1750438826175,0.39186202,103760.0,103750.0,0.88692562]
[1750438826424,0.3725878,103760.0,103750.0,0.91902562]
[1750438826634,0.38222477,103760.0,103750.0,0.91902562]
[1750438827061,0.39186193,103760.0,103750.0,0.91902562]
[1750438827279,0.3725878,103760.0,103750.0,0.91902562]
[1750438827506,0.38222486,103760.0,103750.0,0.91902562]
[1750438827690,0.38222477,103760.0,103750.0,0.91902562]
[1750438828162,0.3725878,103760.0,103750.0,0.91902562]
[1750438828382,0.36295102,103760.0,103750.0,0.95336562]
[1750438828631,0.34,103760.0,103750.0,0.95336562]
[1750438828858,0.34,103760.0,103750.0,1.1439144]
[1750438829519,0.34,103760.0,103750.0,1.04864455]
[1750438831916,0.34,103760.0,103750.0,1.0631854]
[1750438832128,0.34,103760.0,103750.0,1.0631454]
[1750438832389,0.0195936,103770.0,103760.0,0.28500425]
[1750438832609,0.0195936,103770.0,103760.0,0.38028318]
[1750438832821,0.10473308,103780.0,103770.0,0.22164289]
[1750438833038,0.10473308,103780.0,103770.0,0.38484289]
[1750438833039,0.44473308,103780.0,103770.0,0.38484289]
[1750438833488,0.02848814,103780.0,103770.0,0.91642742]
[1750438833742,3.14085521,103820.0,103810.0,0.21192516]
[1750438833957,3.112244,103820.0,103810.0,0.38475785]
[1750438834207,5e-05,103820.0,103810.0,0.39439018]
[1750438834451,0.22158614,103820.0,103810.0,0.1632]
[1750438834683,0.3505679,103820.0,103810.0,0.1632]
[1750438834886,0.21192487,103810.0,103800.0,0.20231194]
[1750438835106,0.55192487,103810.0,103800.0,0.21194557]
[1750438835328,0.34963316,103800.0,103790.0,0.27408839]
[1750438835778,0.3592666,103800.0,103790.0,0.43728839]
[1750438836019,0.35926642,103800.0,103790.0,0.43728839]
[1750438836276,0.04816665,103800.0,103790.0,0.41478313]
[1750438836724,0.03853293,103800.0,103790.0,0.42581814]
[1750438836939,0.01940395,103800.0,103790.0,0.45915814]
[1750438837158,0.01940395,103800.0,103790.0,0.46115814]
[1750438837370,0.35926456,103810.0,103800.0,0.25321883]
[1750438837592,0.34963214,103810.0,103800.0,0.28501883]
[1750438837808,0.35926456,103810.0,103800.0,0.28501883]
[1750438838023,0.37852986,103810.0,103800.0,0.28501883]
[1750438838245,0.36889707,103810.0,103800.0,0.28501883]
[1750438838463,0.38816256,103810.0,103800.0,0.28501883]
[1750438838685,0.36989707,103810.0,103800.0,0.28501883]
[1750438839344,0.38910818,103810.0,103800.0,0.28501883]
[1750438839807,0.60103361,103810.0,103800.0,0.27538557]
[1750438840106,0.38910883,103810.0,103800.0,0.28502883]
[1750438840327,0.37947567,103810.0,103800.0,0.28502883]
[1750438840549,0.39874097,103810.0,103800.0,0.28502883]
[1750438840974,0.38910818,103810.0,103800.0,0.28502883]
[1750438841235,0.36984325,103810.0,103800.0,0.28502883]
[1750438841466,0.37947558,103810.0,103800.0,0.28502883]
[1750438841732,0.36021111,103810.0,103800.0,0.44818883]
[1750438841944,0.001,103810.0,103800.0,0.59316548]
[1750438842692,0.03634699,103810.0,103800.0,0.59316548]
[1750438842931,0.001,103810.0,103800.0,0.59316548]
[1750438844499,0.0369588,103810.0,103800.0,0.59316548]
[1750438844757,0.05622355,103810.0,103800.0,0.28502883]
[1750438844989,0.05622355,103810.0,103800.0,0.44814883]
[1750438845211,0.05622346,103810.0,103800.0,0.44814883]
[1750438845676,0.35927032,103780.0,103770.0,0.22543393]
[1750438845917,0.54235046,103780.0,103770.0,0.24470685]
[1750438846137,0.61778171,103780.0,103770.0,0.21200703]
[1750438846834,0.61778171,103780.0,103770.0,0.22164335]
[1750438847078,0.61778171,103780.0,103770.0,0.23127958]
[1750438847318,0.56162152,103780.0,103770.0,0.24091571]
[1750438847539,0.57125728,103780.0,103770.0,0.24091571]
[1750438847737,0.3592705,103780.0,103770.0,0.27161506]
[1750438848010,0.36890608,103780.0,103770.0,0.27161506]
[1750438848228,0.36990608,103780.0,103770.0,0.27161506]
[1750438848461,0.001,103780.0,103770.0,0.30506506]
[1750438848693,0.54165738,103790.0,103780.0,0.22162152]
[1750438848954,0.37853738,103790.0,103780.0,0.24288641]
[1750438849189,0.37853729,103790.0,103780.0,0.25252152]
[1750438849867,0.36890264,103790.0,103780.0,0.25252152]
[1750438850108,0.3795372,103790.0,103780.0,0.25252152]
[1750438850585,0.1823866,103800.0,103790.0,0.23123464]
[1750438850834,0.04559131,103810.0,103800.0,0.22282883]
[1750438851072,0.02890005,103800.0,103790.0,0.37508543]
[1750438851308,0.01926642,103800.0,103790.0,0.37508543]
[1750438851787,0.35926642,103800.0,103790.0,0.45079417]
[1750438852022,0.35926642,103800.0,103790.0,0.40768543]
[1750438852023,0.34963307,103800.0,103790.0,0.40768543]
[1750438852526,0.5583441,103810.0,103800.0,0.22157883]
[1750438852752,3.51705025,103810.0,103800.0,0.22157883]
[1750438852993,3.50741755,103810.0,103800.0,0.22157883]
[1750438853235,3.49778504,103810.0,103800.0,0.22157883]
[1750438853477,0.3759588,103810.0,103800.0,0.25487883]
[1750438853704,0.3759588,103810.0,103800.0,0.28792883]
[1750438853935,0.0389588,103810.0,103800.0,0.28792883]
[1750438854639,0.0429588,103810.0,103800.0,0.28792883]
[1750438855560,0.007,103810.0,103800.0,0.38320776]
[1750438855804,0.007,103810.0,103800.0,0.45903704]
[1750438856059,0.007,103810.0,103800.0,0.38320776]
[1750438856775,0.007,103810.0,103800.0,0.39774861]
[1750438857256,0.007,103810.0,103800.0,0.9725914]
[1750438857725,0.007,103810.0,103800.0,0.39774861]
[1750438857960,0.003,103810.0,103800.0,0.39774861]
[1750438858193,0.003,103810.0,103800.0,0.49301846]
[1750438858655,5e-05,103820.0,103810.0,0.23609834]
[1750438858882,5e-05,103820.0,103810.0,0.60202727]
[1750438860508,5e-05,103820.0,103810.0,0.60802727]
[1750438860734,5e-05,103820.0,103810.0,0.64355459]
[1750438860958,5e-05,103820.0,103810.0,0.65255459]
[1750438863154,5e-05,103820.0,103810.0,0.44655459]
[1750438863391,5e-05,103820.0,103810.0,0.60959459]
[1750438863623,5e-05,103820.0,103810.0,0.43201374]
[1750438863864,5e-05,103820.0,103810.0,0.55952642]
[1750438867465,5e-05,103820.0,103810.0,0.57406727]
[1750438868391,5e-05,103820.0,103810.0,0.41102727]
[1750438868610,5e-05,103820.0,103810.0,0.43389749]
[1750438869559,0.3593128,103820.0,103810.0,0.39955749]
[1750438869810,0.0096314,103820.0,103810.0,0.39955749]
[1750438870076,0.02889448,103820.0,103810.0,0.4682037]
[1750438870319,0.0288942,103820.0,103810.0,0.4682037]
[1750438870678,0.03852588,103820.0,103810.0,0.39955749]
[1750438870782,0.03852588,103820.0,103810.0,0.39055749]
[1750438871002,0.0288943,103820.0,103810.0,0.39255749]
[1750438871486,0.0288943,103820.0,103810.0,0.38655749]
[1750438871930,0.3688943,103820.0,103810.0,0.38855749]
[1750438872158,0.34115,103830.0,103820.0,0.22153614]
[1750438872385,0.37967301,103830.0,103820.0,0.22153614]
[1750438873051,0.37004198,103830.0,103820.0,0.22153614]
[1750438873270,0.57229556,103830.0,103820.0,0.22153614]
[1750438873492,0.58192668,103830.0,103820.0,0.22153614]
[1750438873965,0.36041104,103830.0,103820.0,0.22153614]
[1750438874197,0.577852,103840.0,103830.0,0.21188415]
[1750438874426,0.5886322,103840.0,103830.0,0.19262255]
[1750438874716,0.5886322,103840.0,103830.0,0.20225367]
[1750438875162,0.35926113,103830.0,103820.0,0.21190418]
[1750438875819,0.55188442,103830.0,103820.0,0.21190418]
[1750438876036,0.35926187,103830.0,103820.0,0.21190418]
[1750438876914,0.36041187,103830.0,103820.0,0.21190418]
[1750438877623,0.36041159,103830.0,103820.0,0.21190418]
[1750438877849,0.37004253,103830.0,103820.0,0.21190418]
[1750438878065,0.37004152,103830.0,103820.0,0.21190418]
[1750438878289,0.37967246,103830.0,103820.0,0.21190418]
[1750438878742,0.37004152,103830.0,103820.0,0.21190418]
[1750438879834,0.37967236,103830.0,103820.0,0.21190418]
[1750438880297,0.34,103830.0,103820.0,0.21190418]
[1750438880751,0.37561426,103840.0,103830.0,0.2538548]
[1750438881004,0.37561426,103840.0,103830.0,0.4467748]
[1750438881224,0.0355632,103840.0,103830.0,0.4467748]
[1750438881692,0.38764697,103850.0,103840.0,0.22149347]
[1750438881937,0.42855483,103850.0,103840.0,0.22273347]
[1750438882163,0.43818382,103850.0,103840.0,0.25353347]
[1750438882380,0.42855474,103850.0,103840.0,0.25353347]
[1750438882842,0.42192603,103850.0,103840.0,0.25353347]
[1750438883298,0.40398307,103850.0,103840.0,0.25353347]
[1750438883550,0.02596499,103850.0,103840.0,0.25353347]
[1750438883787,0.03811223,103850.0,103840.0,0.28563347]
[1750438884011,0.007,103850.0,103840.0,0.28563347]
[1750438884706,0.007,103850.0,103840.0,0.3809124]
[1750438885490,0.004,103850.0,103840.0,0.3809124]
[1750438885728,0.005,103850.0,103840.0,0.3809124]
[1750438885962,0.005,103850.0,103840.0,0.45648398]
[1750438886907,0.001,103850.0,103840.0,0.45648398]
[1750438887381,0.003,103850.0,103840.0,0.45648398]
[1750438887631,0.87188641,103850.0,103840.0,0.22149347]
[1750438887855,0.87188641,103850.0,103840.0,0.21186392]
[1750438887856,0.60040697,103850.0,103840.0,0.21186392]
[1750438888083,0.34,103840.0,103830.0,0.21188377]
[1750438888317,0.37851855,103840.0,103830.0,0.21188377]
[1750438888550,0.57112255,103840.0,103830.0,0.21188377]
[1750438888786,0.38814865,103840.0,103830.0,0.21188377]
[1750438889016,0.03851855,103840.0,103830.0,0.21188377]
[1750438889237,0.04814865,103840.0,103830.0,0.21188377]
[1750438889465,0.21186374,103840.0,103820.0,0.23421241]
[1750438889698,0.01926086,103830.0,103820.0,0.45261121]
[1750438889967,0.02889152,103830.0,103820.0,0.48391121]
[1750438890197,0.0481533,103830.0,103820.0,0.48391121]
[1750438890435,0.02889152,103830.0,103820.0,0.48391121]
[1750438890686,0.04815349,103830.0,103820.0,0.38437595]
[1750438890925,0.24077687,103830.0,103820.0,0.1926411]
[1750438891146,0.22266564,103830.0,103820.0,0.20227315]
[1750438891599,0.22266564,103830.0,103820.0,0.21390511]
[1750438891842,0.22266564,103830.0,103820.0,0.22353688]
[1750438892087,0.22266564,103830.0,103820.0,0.22153688]
[1750438892312,0.22151564,103830.0,103820.0,0.23116847]
[1750438892581,0.22151564,103830.0,103820.0,0.24079996]
[1750438893481,0.22151564,103830.0,103820.0,0.2311668]
[1750438893482,0.00963066,103830.0,103820.0,0.2311668]
[1750438893707,0.02889188,103830.0,103820.0,0.32349745]
[1750438893975,0.01926104,103830.0,103820.0,0.32349745]
[1750438894200,0.35926104,103830.0,103820.0,0.32349745]
[1750438894442,0.35926104,103830.0,103820.0,0.48629745]
[1750438895133,0.35926095,103830.0,103820.0,0.48629745]
[1750438895575,0.35926095,103830.0,103820.0,0.4275068]
[1750438896723,0.02889161,103830.0,103820.0,0.4275068]
[1750438896972,0.03852236,103830.0,103820.0,0.41787558]
[1750438897205,0.02889161,103830.0,103820.0,0.41787558]
[1750438897433,0.01926095,103830.0,103820.0,0.41787558]
[1750438897652,0.23114528,103830.0,103820.0,0.41787558]
[1750438897894,0.0288917,103830.0,103820.0,0.4789291]
[1750438898127,0.03852264,103830.0,103820.0,0.38433558]
[1750438899467,0.23114519,103830.0,103820.0,0.38433558]
[1750438899689,0.04815367,103830.0,103820.0,0.38433558]
[1750438899912,0.24077622,103830.0,103820.0,0.38433558]
[1750438900154,0.04815367,103830.0,103820.0,0.38433558]
[1750438900565,0.0288917,103830.0,103820.0,0.38433558]
[1750438900777,0.03852264,103830.0,103820.0,0.38433558]
[1750438901350,0.0288917,103830.0,103820.0,0.38433558]
[1750438901594,0.03852254,103830.0,103820.0,0.38433558]
[1750438901980,0.03852254,103830.0,103820.0,0.41463558]
[1750438902444,0.23114509,103830.0,103820.0,0.41463558]
[1750438902647,0.04815348,103830.0,103820.0,0.41463558]
[1750438904554,0.24079987,103820.0,103810.0,0.22155166]
[1750438904799,0.58079987,103820.0,103810.0,0.21191915]
[1750438905042,0.36889783,103810.0,103800.0,0.39393273]
[1750438905268,0.35926494,103810.0,103800.0,0.39393273]
[1750438905501,0.34,103810.0,103800.0,0.40475599]
[1750438905747,0.34,103810.0,103800.0,0.52570127]
[1750438905989,0.34963224,103810.0,103800.0,0.52570127]
[1750438906441,0.34963224,103810.0,103800.0,0.46595599]
[1750438906662,0.35926466,103810.0,103800.0,0.46595599]
[1750438906906,0.34963224,103810.0,103800.0,0.46595599]
[1750438907134,0.35926345,103820.0,103810.0,0.25205749]
[1750438907375,0.3592629,103820.0,103810.0,0.44926749]
[1750438907603,0.3592628,103820.0,103810.0,0.44926749]
[1750438907842,0.36889457,103820.0,103810.0,0.44926749]
[1750438908066,0.37852643,103820.0,103810.0,0.44926749]
[1750438908516,0.37952643,103820.0,103810.0,0.44926749]
[1750438908972,0.45397813,103820.0,103810.0,0.44926749]
[1750438909449,0.3602628,103820.0,103810.0,0.44926749]
[1750438909688,0.57216772,103820.0,103810.0,0.44926767]
[1750438909917,0.57216772,103820.0,103810.0,0.4589]
[1750438910148,0.38052643,103820.0,103810.0,0.4589]
[1750438910374,0.03089457,103820.0,103810.0,0.4589]
[1750438910600,0.38052643,103820.0,103810.0,0.4589]
[1750438910827,0.37089457,103820.0,103810.0,0.4589]
[1750438911061,0.342,103820.0,103810.0,0.4589]
[1750438911289,0.002,103820.0,103810.0,0.63484092]
[1750438911767,0.002,103820.0,103810.0,1.09470509]
[1750438912233,0.002,103820.0,103810.0,0.63484092]
[1750438912458,0.001,103820.0,103810.0,0.63484092]
[1750438912688,0.001,103820.0,103810.0,0.63784092]
[1750438912913,0.001,103820.0,103810.0,0.47512092]
[1750438913139,0.001,103820.0,103810.0,0.68064092]
[1750438913408,0.34,103830.0,103820.0,0.28553614]
[1750438913638,0.34,103830.0,103820.0,0.38200507]
[1750438913861,0.34,103830.0,103820.0,0.4466811]
[1750438914093,0.34,103830.0,103820.0,0.28672614]
[1750438914309,0.34963047,103830.0,103820.0,0.44936614]
[1750438914528,0.34,103830.0,103820.0,0.44936614]
[1750438914743,0.34963038,103830.0,103820.0,0.44936614]
[1750438914967,0.35926095,103830.0,103820.0,0.44936614]
[1750438915196,0.35926095,103830.0,103820.0,0.28672614]
[1750438915420,0.62079057,103830.0,103820.0,0.36491306]
[1750438915647,0.62079057,103830.0,103820.0,0.37454483]
[1750438915926,0.35926086,103830.0,103820.0,0.23116791]
[1750438916148,0.34963047,103830.0,103820.0,0.45699791]
[1750438916381,0.36889179,103830.0,103820.0,0.45699791]
[1750438916605,0.37852264,103830.0,103820.0,0.45699791]
[1750438916827,0.37852254,103830.0,103820.0,0.45699791]
[1750438917049,0.38815348,103830.0,103820.0,0.45699791]
[1750438917527,0.37852254,103830.0,103820.0,0.45699791]
[1750438918191,0.57114565,103830.0,103820.0,0.38517651]
[1750438918413,0.62825832,103830.0,103820.0,0.38517651]
[1750438918636,0.62825832,103830.0,103820.0,0.3948081]
[1750438919297,0.3785231,103830.0,103820.0,0.3948081]
[1750438919516,0.57114565,103830.0,103820.0,0.4044395]
[1750438919768,0.58077723,103830.0,103820.0,0.4044395]
[1750438920239,0.58077723,103830.0,103820.0,0.3948081]
[1750438920466,0.57114648,103830.0,103820.0,0.37554483]
[1750438920682,0.36889281,103830.0,103820.0,0.39480791]
[1750438920909,0.61778505,103830.0,103820.0,0.38517651]
[1750438921152,0.56151536,103830.0,103820.0,0.3948081]
[1750438921366,0.22151536,103830.0,103820.0,0.40443959]
[1750438922049,0.01926178,103830.0,103820.0,0.40443903]
[1750438922277,0.01926178,103830.0,103820.0,0.43553903]
[1750438922493,0.2215149,103830.0,103820.0,0.41746614]
[1750438922712,0.03852338,103830.0,103820.0,0.42709754]
[1750438923149,0.23114593,103830.0,103820.0,0.41746614]
[1750438923371,0.22151536,103830.0,103820.0,0.4162766]
[1750438923631,0.22151564,103830.0,103820.0,0.001]
[1750438923859,0.28605502,103830.0,103820.0,0.01063205]
[1750438924106,0.12290542,103830.0,103820.0,0.20327315]
[1750438924328,0.42697031,103830.0,103820.0,0.20327315]
[1750438924548,0.42577031,103830.0,103820.0,0.22253678]
[1750438924771,0.39836604,103830.0,103820.0,0.23216846]
[1750438925263,0.39836604,103830.0,103820.0,0.22253678]
[1750438925707,0.39836604,103830.0,103820.0,0.24180005]
[1750438925934,0.39836604,103830.0,103820.0,0.21290501]
[1750438926199,0.39836604,103830.0,103820.0,0.22253678]
[1750438926434,0.39836604,103830.0,103820.0,0.23216846]
[1750438927565,3.94594768,103830.0,103820.0,0.001]
[1750438928030,3.87978296,103830.0,103820.0,0.001]
[1750438928231,3.84808296,103830.0,103820.0,0.001]
[1750438928898,0.20227296,103820.0,103810.0,0.22155749]
[1750438929117,0.20227296,103820.0,103810.0,0.23509264]
[1750438929118,0.54227296,103820.0,103810.0,0.23509264]
[1750438929350,0.21192516,103810.0,103800.0,0.22476822]
[1750438929568,0.22155814,103810.0,103800.0,0.37446585]
[1750438929791,0.21192553,103810.0,103800.0,0.20231213]
[1750438930007,3.40918035,103810.0,103800.0,0.21194594]
[1750438930236,0.21192553,103810.0,103800.0,0.2312131]
[1750438930455,0.21192553,103810.0,103800.0,0.27304645]
[1750438930916,0.21192553,103810.0,103800.0,0.27504645]
[1750438931138,4.05914357,103810.0,103800.0,0.002]
[1750438931573,0.57125636,103780.0,103770.0,0.26753027]
[1750438931575,0.56162198,103780.0,103770.0,0.0001]
[1750438931800,0.55198659,103780.0,103770.0,0.20247053]
[1750438932511,0.55198659,103780.0,103770.0,0.21210694]
[1750438932776,0.34963493,103780.0,103770.0,0.29570921]
[1750438933233,3.614714,103800.0,103790.0,0.21196599]
[1750438933464,3.614714,103800.0,103790.0,0.25280017]
[1750438933465,3.49072823,103800.0,103790.0,0.25280017]
[1750438933690,3.68340645,103800.0,103790.0,0.25280027]
[1750438933919,3.68340645,103800.0,103790.0,0.24316599]
[1750438934145,3.67377319,103800.0,103790.0,0.24316599]
[1750438934810,0.56157919,103800.0,103790.0,0.24316599]
[1750438935040,0.56457919,103800.0,103790.0,0.24316599]
[1750438935276,0.56457919,103800.0,103790.0,0.25280036]
[1750438935480,0.56457919,103800.0,103790.0,0.26243464]
[1750438935481,0.41186529,103800.0,103790.0,0.26243464]
[1750438935701,0.41186529,103800.0,103790.0,0.25280036]
[1750438935702,0.61417742,103800.0,103790.0,0.25280036]
[1750438935944,0.61717742,103800.0,103790.0,0.24316599]
[1750438936165,0.60754398,103800.0,103790.0,0.24316599]
[1750438936509,0.60754398,103800.0,103790.0,0.25280017]
[1750438936732,0.60754398,103800.0,103790.0,0.24439599]
[1750438936957,0.60754398,103800.0,103790.0,0.25403036]
[1750438937170,0.40523185,103800.0,103790.0,0.29376454]
[1750438937388,0.43486143,103800.0,103790.0,0.29376454]
[1750438937621,0.63717356,103800.0,103790.0,0.29376454]
[1750438937852,0.63717356,103800.0,103790.0,0.28413036]
[1750438938069,0.29717356,103800.0,103790.0,0.27449599]
[1750438938516,0.29717356,103800.0,103790.0,0.28413027]
[1750438938955,0.09486143,103800.0,103790.0,0.28413027]
[1750438939244,0.0948605,103800.0,103790.0,0.29376445]
[1750438939490,0.31643998,103800.0,103790.0,0.29376445]
[1750438939916,0.31643998,103800.0,103790.0,0.28413027]
[1750438940142,0.64680682,103800.0,103790.0,0.27449599]
[1750438940332,0.64380682,103800.0,103790.0,0.28413036]
[1750438940586,0.63417338,103800.0,103790.0,0.28413036]
[1750438940826,0.63617338,103800.0,103790.0,0.28413036]
[1750438941065,0.61390603,103800.0,103790.0,0.24439609]
[1750438941744,0.61490603,103800.0,103790.0,0.25403055]
[1750438942418,0.62453966,103800.0,103790.0,0.26366473]
[1750438942661,0.62453966,103800.0,103790.0,0.25403055]
[1750438942887,0.62453966,103800.0,103790.0,0.26366492]
[1750438943570,0.44149469,103800.0,103790.0,0.2732992]
[1750438943796,0.45112767,103800.0,103790.0,0.27329864]
[1750438944021,0.45112767,103800.0,103790.0,0.26366446]
[1750438944292,0.4125939,103800.0,103790.0,0.30599864]
[1750438944516,0.38296432,103800.0,103790.0,0.30599864]
[1750438945674,0.38296432,103800.0,103790.0,0.40127757]
[1750438945887,0.04296432,103800.0,103790.0,0.40127757]
[1750438946128,0.003,103800.0,103790.0,0.41581842]
[1750438946356,0.003,103800.0,103790.0,0.4929198]
[1750438947954,0.002,103800.0,103790.0,0.4929198]
[1750438948193,0.34,103810.0,103800.0,0.30124968]
[1750438948419,0.34,103810.0,103800.0,0.55892861]
[1750438948420,0.37870766,103810.0,103800.0,0.55892861]
[1750438949767,0.37870766,103810.0,103800.0,0.55992861]
[1750438950211,0.37870766,103810.0,103800.0,0.6136244]
[1750438950640,0.34,103810.0,103800.0,0.6136244]
[1750438950860,0.34,103810.0,103800.0,0.4542244]
[1750438951747,0.37795263,103830.0,103820.0,0.28666614]
[1750438952243,0.37795263,103830.0,103820.0,0.44902614]
[1750438952244,0.41669643,103830.0,103820.0,0.44902614]
[1750438952465,0.8787438,103830.0,103820.0,0.44902614]
[1750438952688,0.0387438,103830.0,103820.0,0.51511951]
[1750438953129,0.342,103830.0,103820.0,0.51511951]
[1750438953587,0.342,103830.0,103820.0,0.62493929]
[1750438953588,0.002,103830.0,103820.0,0.62493929]
[1750438954033,0.003,103830.0,103820.0,0.62493929]
[1750438954756,0.5615235,103850.0,103840.0,0.22149385]
[1750438954757,0.59998628,103850.0,103840.0,0.22149385]
[1750438955002,0.59998628,103850.0,103840.0,0.39344349]
[1750438955249,0.39777076,103850.0,103840.0,0.40307304]
[1750438955460,0.59998539,103850.0,103840.0,0.40307304]
[1750438955676,0.60961466,103850.0,103840.0,0.40307304]
[1750438955897,0.60961466,103850.0,103840.0,0.39344349]
[1750438956120,0.61461466,103850.0,103840.0,0.39344349]
[1750438956619,0.42202921,103850.0,103840.0,0.39344349]
[1750438956847,0.41239994,103850.0,103840.0,0.40307304]
[1750438957070,0.41739994,103850.0,103840.0,0.40307304]
[1750438957279,0.07739994,103850.0,103840.0,0.40307304]
[1750438957484,0.07739938,103850.0,103840.0,0.43497304]
[1750438958628,0.2796141,103850.0,103840.0,0.4978556]
[1750438958862,0.2796141,103850.0,103840.0,0.39344349]
[1750438959329,0.6196141,103850.0,103840.0,0.39344349]
[1750438959582,0.60998548,103850.0,103840.0,0.38381385]
[1750438959804,0.60998548,103850.0,103840.0,0.37418412]
[1750438960027,0.60998548,103850.0,103830.0,0.22685255]
[1750438960028,3.32405792,103840.0,103830.0,0.2022533]
[1750438960265,3.51033568,103850.0,103840.0,0.21186374]
[1750438960498,3.72217883,103850.0,103840.0,0.21186374]
[1750438960722,3.72217883,103850.0,103840.0,0.21186383]
[1750438961168,3.72337883,103850.0,103840.0,0.20223401]
[1750438961408,3.70875021,103850.0,103840.0,0.2022342]
[1750438961625,0.01926011,103840.0,103830.0,0.37412377]
[1750438961852,0.02226011,103840.0,103830.0,0.21188377]
[1750438962072,0.02226011,103840.0,103830.0,0.39338537]
[1750438962073,0.02225965,103840.0,103830.0,0.39338537]
[1750438962345,0.22449375,103840.0,103830.0,0.39334537]
[1750438962566,0.22449375,103840.0,103830.0,0.37408433]
[1750438962806,0.02888975,103840.0,103830.0,0.38371499]
[1750438963026,0.0288891,103840.0,103830.0,0.39334546]
[1750438963494,3.69692141,103850.0,103840.0,0.21186392]
[1750438963717,3.79220034,103850.0,103840.0,0.25319365]
[1750438964178,3.81145851,103850.0,103840.0,0.27245321]
[1750438964395,3.80745851,103850.0,103840.0,0.24075321]
[1750438964609,3.90272836,103850.0,103840.0,0.24075321]
[1750438964846,3.81245851,103850.0,103840.0,0.24075266]
[1750438965539,3.81645851,103850.0,103840.0,0.23112311]
[1750438965767,3.60461461,103850.0,103840.0,0.23112311]
[1750438966008,0.4067703,103850.0,103840.0,0.27165266]